fUST/lending_fUST_20250708
["ID","MTS","AMOUNT","RATE_DAILY","PERIOD"]
[370319011,1751953837948,-460.0,0.00019452,2]
[370319012,1751953837960,-460.0,0.00019452,2]
[370319013,1751953837973,-460.0,0.00019452,2]
[370319014,1751953837986,-187.61887503,0.00019452,2]
[370319015,1751953838000,-460.0,0.00019452,2]
[370319016,1751953838013,-460.0,0.00019452,2]
[370319017,1751953838028,-460.0,0.00019452,2]
[370319018,1751953838043,-473.75516351,0.00019452,2]
[370319019,1751953838058,-460.0,0.00019452,2]
[370319021,1751953838072,-460.0,0.00019452,2]
[370319022,1751953838083,-460.0,0.00019452,2]
[370319024,1751953838094,-1670.01,0.00019452,2]
[370319026,1751953838105,-460.0,0.00019452,2]
[370319029,1751953838117,-460.0,0.00019452,2]
[370319031,1751953838132,-499.02,0.00019452,2]
[370319034,1751953838146,-460.0,0.00019452,2]
[370319036,1751953838158,-460.0,0.00019452,2]
[370319038,1751953838168,-460.0,0.00019452,2]
[370319041,1751953838180,-460.0,0.00019452,2]
[370319043,1751953838192,-460.0,0.00019452,2]
[370319045,1751953838206,-460.0,0.00019452,2]
[370319048,1751953838218,-509.67,0.00019452,2]
[370319050,1751953838229,-1070.03,0.00019452,2]
[370319052,1751953838240,-460.0,0.00019452,2]
[370319054,1751953838251,-460.0,0.00019452,2]
[370319056,1751953838263,-193.57639543,0.00019452,2]
[370319059,1751953838275,-463.99,0.00019452,2]
[370319061,1751953838287,-460.0,0.00019452,2]
[370319063,1751953838299,-460.0,0.00019452,2]
[370319066,1751953838311,-2322.54,0.00019452,2]
[370319068,1751953838323,-460.0,0.00019452,2]
[370319070,1751953838335,-1085.91,0.00019452,2]
[370319073,1751953838347,-460.0,0.00019452,2]
[370319075,1751953838360,-460.0,0.00019452,2]
[370319077,1751953838373,-460.0,0.00019452,2]
[370319080,1751953838384,-460.0,0.00019452,2]
[370319082,1751953838396,-460.0,0.00019452,2]
[370319084,1751953838408,-460.0,0.00019452,2]
[370319086,1751953838420,-460.0,0.00019452,2]
[370319088,1751953838432,-460.0,0.00019452,2]
[370319090,1751953838444,-460.0,0.00019452,2]
[370319092,1751953838458,-460.0,0.00019452,2]
[370319094,1751953838469,-460.0,0.00019452,2]
[370319096,1751953838481,-460.0,0.00019452,2]
[370319098,1751953838494,-362.99370898,0.00019452,2]
[370319101,1751953838507,-1462.79,0.00019452,2]
[370319103,1751953838519,-460.0,0.00019452,2]
[370319105,1751953838531,-460.0,0.00019452,2]
[370319108,1751953838544,-2898.8,0.00019452,2]
[370319110,1751953838557,-1642.97,0.00019452,2]
[370319112,1751953838569,-460.0,0.00019452,2]
[370319115,1751953838583,-460.0,0.00019452,2]
[370319117,1751953838595,-460.0,0.00019452,2]
[370319119,1751953838607,-460.0,0.00019452,2]
[370319121,1751953838619,-1220.71,0.00019452,2]
[370319123,1751953838632,-530.99,0.00019452,2]
[370319126,1751953838645,-460.0,0.00019452,2]
[370319128,1751953838658,-460.0,0.00019452,2]
[370319130,1751953838670,-460.0,0.00019452,2]
[370319133,1751953838682,-460.0,0.00019452,2]
[370319135,1751953838694,-460.0,0.00019452,2]
[370319137,1751953838706,-460.0,0.00019452,2]
[370319140,1751953838720,-460.0,0.00019452,2]
[370319142,1751953838732,-370.86851748,0.00019452,2]
[370319144,1751953838744,-460.0,0.00019452,2]
[370319147,1751953838755,-460.0,0.00019452,2]
[370319149,1751953838767,-460.0,0.00019452,2]
[370319151,1751953838780,-461.66829975,0.00019452,2]
[370319154,1751953838792,-370.75545723,0.00019452,2]
[370319156,1751953838804,-2882.2,0.00019452,2]
[370319158,1751953838816,-460.0,0.00019452,2]
[370319161,1751953838828,-460.0,0.00019452,2]
[370319163,1751953838840,-460.0,0.00019452,2]
[370319165,1751953838852,-460.0,0.00019452,2]
[370319167,1751953838864,-462.0845288,0.00019452,2]
[370319170,1751953838876,-460.0,0.00019452,2]
[370319172,1751953838889,-1230.38,0.00019452,2]
[370319174,1751953838901,-504.92359047,0.00019452,2]
[370319176,1751953838913,-90.03877824,0.00019452,2]
[370319234,1751953839544,-805.47,0.00019178,2]
[370319235,1751953839554,-460.0,0.00019178,2]
[370319236,1751953839564,-460.0,0.00019178,2]
[370319237,1751953839574,-460.0,0.00019178,2]
[370319238,1751953839584,-460.0,0.00019178,2]
[370319239,1751953839595,-460.0,0.00019178,2]
[370319240,1751953839604,-460.0,0.00019178,2]
[370319241,1751953839615,-460.0,0.00019178,2]
[370319242,1751953839624,-460.0,0.00019178,2]
[370319243,1751953839635,-460.0,0.00019178,2]
[370319244,1751953839645,-369.96122176,0.00019452,2]
[370319245,1751953839655,-459.90354604,0.00019452,2]
[370319246,1751953839665,-2499.72,0.00019452,2]
[370319247,1751953839675,-460.0,0.00019452,2]
[370319248,1751953839684,-460.0,0.00019452,2]
[370319249,1751953839694,-805.47,0.00019452,2]
[370319250,1751953839704,-503.46,0.00019472,2]
[370319251,1751953839714,-160.0,0.00019545,2]
[370319252,1751953839724,-230.51100374,0.00019545,2]
[370319253,1751953839734,-848.40570879,0.00019545,2]
[370319254,1751953839744,-837.89306043,0.00019545,2]
[370319255,1751953839754,-215.2437778,0.00019545,2]
[370319256,1751953839764,-160.0,0.00019545,2]
[370319257,1751953839774,-893.53808431,0.00019545,2]
[370319258,1751953839786,-424.83378532,0.00019545,2]
[370319259,1751953839798,-1350.00000001,0.00019545,2]
[370319260,1751953839810,-4607.52877426,0.00019545,2]
[370319261,1751953839831,-462.07229273,0.00019178,2]
[370319262,1751953839841,-5310.8178493,0.00019545,2]
[370319263,1751953839851,-160.0,0.00019545,2]
[370319264,1751953839861,-979.40302096,0.00019626,2]
[370319265,1751953839871,-160.0,0.00019668,7]
[370319266,1751953839881,-10162.61874663,0.000197,2]
[370319267,1751953839893,-19854.97331025,0.000197,2]
[370319268,1751953839903,-504.62215437,0.00019721,2]
[370319269,1751953839913,-503.46,0.00019725,2]
[370319270,1751953839922,-503.46,0.00019725,2]
[370319271,1751953839932,-503.46,0.00019725,2]
[370319272,1751953839941,-503.46,0.00019725,2]
[370319273,1751953839951,-460.0,0.00019726,2]
[370319274,1751953839961,-460.0,0.00019726,2]
[370319275,1751953839970,-460.0,0.00019726,2]
[370319276,1751953839981,-460.0,0.00019726,2]
[370319277,1751953839992,-460.0,0.00019726,2]
[370319278,1751953840002,-460.0,0.00019726,2]
[370319279,1751953840012,-460.0,0.00019726,2]
[370319280,1751953840022,-460.0,0.00019726,2]
[370319281,1751953840032,-460.0,0.00019726,2]
[370319282,1751953840042,-460.0,0.00019726,2]
[370319283,1751953840052,-460.0,0.00019726,2]
[370319284,1751953840061,-460.0,0.00019726,2]
[370319285,1751953840071,-345.40293574,0.00019726,2]
[370319286,1751953840080,-424.07716959,0.00019726,2]
[370319287,1751953840090,-460.0,0.00019726,2]
[370319288,1751953840099,-460.0,0.00019726,2]
[370319289,1751953840109,-460.0,0.00019726,2]
[370319290,1751953840118,-510.07,0.00019726,2]
[370319291,1751953840128,-460.0,0.00019726,2]
[370319292,1751953840138,-1427.08,0.00019726,2]
[370319293,1751953840148,-1114.55,0.00019726,2]
[370319294,1751953840157,-460.0,0.00019726,2]
[370319295,1751953840168,-1218.89,0.00019726,2]
[370319296,1751953840177,-465.47,0.00019726,2]
[370319297,1751953840187,-460.0,0.00019726,2]
[370319298,1751953840197,-460.0,0.00019726,2]
[370319299,1751953840207,-460.0,0.00019726,2]
[370319300,1751953840217,-460.0,0.00019726,2]
[370319301,1751953840226,-460.0,0.00019726,2]
[370319302,1751953840236,-460.0,0.00019726,2]
[370319303,1751953840246,-2601.32,0.00019726,2]
[370319304,1751953840255,-460.0,0.00019726,2]
[370319305,1751953840266,-460.0,0.00019726,2]
[370319306,1751953840275,-460.0,0.00019726,2]
[370319307,1751953840285,-546.54619805,0.00019726,2]
[370319308,1751953840295,-460.0,0.00019726,2]
[370319309,1751953840305,-460.0,0.00019726,2]
[370319310,1751953840315,-460.0,0.00019726,2]
[370319311,1751953840324,-460.0,0.00019726,2]
[370319312,1751953840333,-461.99,0.00019726,2]
[370319313,1751953840343,-460.0,0.00019726,2]
[370319314,1751953840353,-1438.61,0.00019726,2]
[370319315,1751953840362,-810.41,0.00019726,2]
[370319316,1751953840372,-460.0,0.00019726,2]
[370319317,1751953840382,-461.06148174,0.00019726,2]
[370319318,1751953840392,-460.0,0.00019726,2]
[370319319,1751953840401,-460.0,0.00019726,2]
[370319321,1751953840411,-460.0,0.00019726,2]
[370319323,1751953840420,-460.0,0.00019726,2]
[370319325,1751953840430,-460.0,0.00019726,2]
[370319327,1751953840440,-1599.14,0.00019726,2]
[370319329,1751953840453,-506.63,0.00019726,2]
[370319331,1751953840463,-1102.29,0.00019726,2]
[370319333,1751953840473,-460.0,0.00019726,2]
[370319335,1751953840483,-460.0,0.00019726,2]
[370319337,1751953840492,-373.3139547,0.00019726,2]
[370319339,1751953840502,-460.0,0.00019726,2]
[370319341,1751953840512,-460.0,0.00019726,2]
[370319343,1751953840522,-460.0,0.00019726,2]
[370319346,1751953840532,-273.89896995,0.00019726,2]
[370319348,1751953840542,-1670.01,0.00019726,2]
[370319349,1751953840552,-460.0,0.00019726,2]
[370319351,1751953840562,-499.02,0.00019726,2]
[370319353,1751953840572,-460.0,0.00019726,2]
[370319354,1751953840582,-460.0,0.00019726,2]
[370319355,1751953840592,-509.67,0.00019726,2]
[370319357,1751953840601,-1070.03,0.00019726,2]
[370319358,1751953840611,-460.0,0.00019726,2]
[370319359,1751953840621,-463.99,0.00019726,2]
[370319360,1751953840630,-460.0,0.00019726,2]
[370319361,1751953840640,-2322.54,0.00019726,2]
[370319362,1751953840650,-1085.91,0.00019726,2]
[370319363,1751953840659,-460.0,0.00019726,2]
[370319364,1751953840669,-460.0,0.00019726,2]
[370319365,1751953840678,-298.81683322,0.00019726,2]
[370319366,1751953840688,-460.0,0.00019726,2]
[370319367,1751953840697,-460.0,0.00019726,2]
[370319368,1751953840706,-460.0,0.00019726,2]
[370319369,1751953840716,-460.0,0.00019726,2]
[370319370,1751953840725,-412.18144647,0.00019726,2]
[370319371,1751953840739,-471.54538709,0.00019726,2]
[370319372,1751953840750,-351.27555648,0.00019726,2]
[370319373,1751953840830,-460.0,0.00019178,2]
[370319374,1751953840841,-772.99649772,0.00019452,2]
[370319375,1751953840852,-227.78760996,0.00019726,2]
[370319376,1751953840862,-460.0,0.00019726,2]
[370319377,1751953840872,-460.0,0.00019726,2]
[370319378,1751953840883,-2898.8,0.00019726,2]
[370319379,1751953840893,-1642.97,0.00019726,2]
[370319380,1751953840904,-460.0,0.00019726,2]
[370319381,1751953840916,-460.0,0.00019726,2]
[370319382,1751953840927,-460.0,0.00019726,2]
[370319383,1751953840938,-1220.71,0.00019726,2]
[370319384,1751953840949,-530.99,0.00019726,2]
[370319385,1751953840959,-460.0,0.00019726,2]
[370319386,1751953840970,-460.0,0.00019726,2]
[370319387,1751953840981,-460.0,0.00019726,2]
[370319388,1751953840991,-460.0,0.00019726,2]
[370319389,1751953841002,-460.0,0.00019726,2]
[370319390,1751953841012,-1105.3488096,0.00019726,2]
[370319391,1751953841040,-1776.8511904,0.00019726,2]
[370319392,1751953841051,-460.0,0.00019726,2]
[370319393,1751953841061,-460.0,0.00019726,2]
[370319394,1751953841071,-1230.38,0.00019726,2]
[370319395,1751953841082,-460.0,0.00019726,2]
[370319396,1751953841092,-151.0,0.00019726,2]
[370319397,1751953841101,-2499.72,0.00019726,2]
[370319398,1751953841111,-805.47,0.00019726,2]
[370319399,1751953841120,-501.63930192,0.00019741,2]
[370319400,1751953841130,-176.0,0.00019782,2]
[370319401,1751953841140,-176.0,0.00019817,2]
[370319402,1751953841149,-503.46,0.0001982,2]
[370319403,1751953841159,-500.0,0.00019821,7]
[370319404,1751953841168,-500.0,0.00019821,7]
[370319405,1751953841179,-500.0,0.00019821,7]
[370319406,1751953841188,-500.0,0.00019821,7]
[370319407,1751953841198,-500.0,0.00019821,7]
[370319408,1751953841208,-500.0,0.00019821,7]
[370319409,1751953841220,-500.0,0.00019821,7]
[370319410,1751953841231,-500.0,0.00019821,7]
[370319411,1751953841241,-500.0,0.00019821,7]
[370319412,1751953841251,-500.0,0.00019821,7]
[370319413,1751953841262,-500.0,0.00019821,7]
[370319414,1751953841273,-500.0,0.00019821,7]
[370319415,1751953841284,-500.0,0.00019821,7]
[370319416,1751953841294,-374.5,0.00019821,7]
[370319417,1751953841304,-500.0,0.00019821,7]
[370319418,1751953841314,-500.0,0.00019821,7]
[370319419,1751953841324,-500.0,0.00019821,7]
[370319420,1751953841334,-500.0,0.00019821,7]
[370319421,1751953841343,-500.0,0.00019821,7]
[370319422,1751953841355,-500.0,0.00019821,7]
[370319423,1751953841365,-315.34,0.00019821,7]
[370319424,1751953841376,-112.89751771,0.00019821,7]
[370319428,1751953842919,-460.0,0.00019178,2]
[370319429,1751953842930,-331.2784889,0.00019178,2]
[370319430,1751953843087,-177.11337102,0.00019178,2]
[370319431,1751953843097,-460.0,0.00019178,2]
[370319432,1751953843107,-515.33099848,0.00019726,2]
[370319433,1751953843117,-387.10248229,0.00019821,7]
[370319434,1751953843127,-848.40570879,0.00019821,7]
[370319435,1751953843136,-151.0,0.00019821,2]
[370319436,1751953843146,-150.0,0.00019828,2]
[370319437,1751953843155,-176.0,0.00019856,2]
[370319438,1751953843165,-1932.69964143,0.000199,2]
[370319439,1751953843175,-901.50168407,0.0001994,2]
[370319440,1751953843184,-176.0,0.00019955,2]
[370319441,1751953843193,-2499.56598565,0.00019999,2]
[370319451,1751953845807,-256.57243791,0.00019178,2]
[370319452,1751953845861,-206.30429861,0.00019178,2]
[370319453,1751953845871,-460.0,0.00019178,2]
[370319454,1751953845881,-460.0,0.00019452,2]
[370319455,1751953845890,-460.0,0.00019452,2]
[370319456,1751953845900,-460.0,0.00019726,2]
[370319457,1751953845911,-460.0,0.00019726,2]
[370319458,1751953845921,-3665.92201458,0.00019999,2]
[370319479,1751954823603,-153.27153529,0.00018219,2]
[370319499,1751955032300,-39.878342,0.00018219,2]
[370319501,1751955032311,-281.501948,0.00018297,2]
[370319503,1751955032322,-645.7586102,0.00018366,2]
[370319505,1751955032332,-160.0,0.00018603,3]
[370319507,1751955032342,-180.11143762,0.00018805,2]
[370319509,1751955032351,-377.40120506,0.000189,2]
[370319511,1751955032362,-176.0,0.00019115,2]
[370319513,1751955032372,-176.0,0.00019147,2]
[370319515,1751955032382,-176.0,0.00019155,2]
[370319517,1751955032392,-207.4,0.00019164,2]
[370319519,1751955032402,-176.0,0.00019169,2]
[370319521,1751955032412,-300.0,0.00019175,2]
[370319523,1751955032422,-300.0,0.00019175,2]
[370319525,1751955032432,-300.0,0.00019175,2]
[370319527,1751955032442,-464.5708672,0.00019175,2]
[370319530,1751955032456,-735.4291328,0.00019175,2]
[370319532,1751955032467,-500.0,0.00019177,2]
[370319534,1751955032476,-500.0,0.00019177,2]
[370319537,1751955032486,-410.68465005,0.00019177,2]
[370319641,1751955038222,-89.31534995,0.00019177,2]
[370319643,1751955038232,-500.0,0.00019177,2]
[370319645,1751955038242,-500.0,0.00019177,2]
[370319647,1751955038251,-255.08856482,0.00019177,2]
[370319654,1751955038401,-588.5,0.00019177,2]
[370319656,1751955038412,-500.0,0.00019177,2]
[370319658,1751955038421,-500.0,0.00019177,2]
[370319660,1751955038431,-500.0,0.00019177,2]
[370319662,1751955038440,-500.0,0.00019177,2]
[370319664,1751955038450,-500.0,0.00019177,2]
[370319666,1751955038459,-500.0,0.00019177,2]
[370319667,1751955038469,-460.0,0.00019178,2]
[370319668,1751955038479,-460.0,0.00019178,2]
[370319670,1751955038489,-497.95075379,0.00019178,2]
[370319672,1751955038499,-590.80361207,0.00019178,2]
[370319673,1751955038510,-460.0,0.00019178,2]
[370319674,1751955038519,-460.0,0.00019178,2]
[370319675,1751955038529,-460.0,0.00019178,2]
[370319676,1751955038539,-460.0,0.00019178,2]
[370319677,1751955038548,-395.17515856,0.00019178,2]
[370319678,1751955038557,-295.01143006,0.00019178,2]
[370319679,1751955038571,-460.0,0.00019178,2]
[370319680,1751955038580,-460.0,0.00019178,2]
[370319681,1751955038590,-229.01872896,0.00019178,2]
[370319682,1751955038599,-460.0,0.00019178,2]
[370319683,1751955038609,-460.0,0.00019178,2]
[370319684,1751955038619,-460.0,0.00019178,2]
[370319685,1751955038628,-460.0,0.00019178,2]
[370319686,1751955038638,-435.98862857,0.00019178,2]
[370319687,1751955038648,-460.0,0.00019178,2]
[370319688,1751955038658,-460.0,0.00019178,2]
[370319689,1751955038668,-460.0,0.00019178,2]
[370319690,1751955038677,-462.72454661,0.00019178,2]
[370319691,1751955038687,-460.0,0.00019178,2]
[370319692,1751955038697,-460.0,0.00019178,2]
[370319693,1751955038706,-554.2564084,0.00019178,2]
[370319694,1751955038716,-460.0,0.00019178,2]
[370319695,1751955038726,-269.36174212,0.00019178,2]
[370319696,1751955038735,-463.01720261,0.00019178,2]
[370319697,1751955038746,-412.87076751,0.00019178,2]
[370319698,1751955038755,-460.0,0.00019178,2]
[370319699,1751955038764,-460.0,0.00019178,2]
[370319700,1751955038774,-251.64331887,0.00019178,2]
[370319701,1751955038785,-416.80918711,0.00019178,2]
[370319702,1751955038795,-460.0,0.00019178,2]
[370319703,1751955038805,-510.58680343,0.00019178,2]
[370319704,1751955038815,-460.0,0.00019178,2]
[370319705,1751955038825,-460.0,0.00019178,2]
[370319706,1751955038834,-460.0,0.00019178,2]
[370319707,1751955038844,-460.0,0.00019178,2]
[370319708,1751955038854,-460.0,0.00019178,2]
[370319709,1751955038864,-460.62639591,0.00019178,2]
[370319710,1751955038873,-460.0,0.00019178,2]
[370319711,1751955038883,-460.0,0.00019178,2]
[370319712,1751955038892,-180.54855024,0.00019178,2]
[370319713,1751955038902,-460.0,0.00019178,2]
[370319714,1751955038912,-460.0,0.00019178,2]
[370319715,1751955038921,-460.0,0.00019178,2]
[370319716,1751955038931,-466.0159401,0.00019178,2]
[370319717,1751955038940,-460.0,0.00019178,2]
[370319718,1751955038949,-460.0,0.00019178,2]
[370319719,1751955038958,-460.0,0.00019178,2]
[370319720,1751955038968,-460.0,0.00019178,2]
[370319721,1751955038977,-185.17200509,0.00019178,2]
[370319722,1751955038987,-173.86101571,0.00019178,2]
[370319723,1751955038997,-460.0,0.00019178,2]
[370319724,1751955039007,-460.0,0.00019178,2]
[370319725,1751955039017,-460.0,0.00019178,2]
[370319726,1751955039029,-460.0,0.00019178,2]
[370319727,1751955039039,-460.0,0.00019178,2]
[370319728,1751955039048,-460.0,0.00019178,2]
[370319729,1751955039058,-462.46951136,0.00019178,2]
[370319730,1751955039069,-460.0,0.00019178,2]
[370319731,1751955039079,-460.0,0.00019178,2]
[370319732,1751955039089,-460.0,0.00019178,2]
[370319733,1751955039098,-460.0,0.00019178,2]
[370319734,1751955039109,-460.0,0.00019178,2]
[370319735,1751955039120,-460.0,0.00019178,2]
[370319736,1751955039130,-460.0,0.00019178,2]
[370319737,1751955039139,-460.0,0.00019178,2]
[370319738,1751955039149,-460.0,0.00019178,2]
[370319739,1751955039158,-18.66884649,0.00019178,2]
[370319740,1751955039172,-441.33115351,0.00019178,2]
[370319741,1751955039183,-460.0,0.00019178,2]
[370319742,1751955039192,-460.0,0.00019178,2]
[370319743,1751955039202,-460.0,0.00019178,2]
[370319744,1751955039212,-461.67340762,0.00019178,2]
[370319745,1751955039221,-460.0,0.00019178,2]
[370319746,1751955039231,-460.0,0.00019178,2]
[370319747,1751955039240,-167.77322312,0.00019178,2]
[370319748,1751955039250,-460.0,0.00019178,2]
[370319749,1751955039259,-463.15177712,0.00019178,2]
[370319750,1751955039269,-460.0,0.00019178,2]
[370319751,1751955039278,-460.0,0.00019178,2]
[370319752,1751955039287,-460.0,0.00019178,2]
[370319753,1751955039297,-500.0,0.00019178,2]
[370319754,1751955039307,-500.0,0.00019178,2]
[370319755,1751955039316,-500.0,0.00019178,2]
[370319756,1751955039326,-500.0,0.00019178,2]
[370319757,1751955039336,-500.0,0.00019178,2]
[370319758,1751955039346,-500.0,0.00019178,2]
[370319759,1751955039355,-460.0,0.00019178,2]
[370319760,1751955039365,-290.04455751,0.00019178,2]
[370319761,1751955039374,-460.0,0.00019178,2]
[370319762,1751955039383,-460.0,0.00019178,2]
[370319763,1751955039394,-460.0,0.00019178,2]
[370319764,1751955039403,-460.0,0.00019178,2]
[370319765,1751955039413,-460.0,0.00019178,2]
[370319766,1751955039423,-460.0,0.00019178,2]
[370319767,1751955039433,-460.0,0.00019178,2]
[370319768,1751955039447,-312.96872419,0.00019178,2]
[370319769,1751955039457,-462.77374306,0.00019178,2]
[370319770,1751955039467,-460.0,0.00019178,2]
[370319771,1751955039477,-462.0807414,0.00019178,2]
[370319772,1751955039487,-460.0,0.00019178,2]
[370319773,1751955039496,-460.0,0.00019178,2]
[370319774,1751955039506,-460.0,0.00019178,2]
[370319775,1751955039516,-460.0,0.00019178,2]
[370319776,1751955039526,-1328.14069685,0.00019178,2]
[370319777,1751955039539,-917.40057482,0.00019178,2]
[370319807,1751955043404,-711.41587639,0.00019078,2]
[370319808,1751955043418,-460.0,0.00019178,2]
[370319809,1751955043433,-224.05316325,0.00019178,2]
[370319810,1751955043445,-460.0,0.00019178,2]
[370319811,1751955043461,-460.97783107,0.00019178,2]
[370319812,1751955043472,-460.0,0.00019178,2]
[370319813,1751955043483,-1248.7,0.00019178,2]
[370319814,1751955043494,-60.02945237,0.00019178,2]
[370319815,1751955043510,-493.44347683,0.00019178,2]
[370319816,1751955043521,-460.0,0.00019178,2]
[370319817,1751955043533,-368.08152867,0.00019178,2]
[370319857,1751955046160,-91.91847133,0.00019178,2]
[370319859,1751955046174,-460.86839556,0.00019178,2]
[370319861,1751955046186,-460.0,0.00019178,2]
[370319864,1751955046200,-443.54546627,0.00019178,2]
[370319867,1751955046217,-16.45453373,0.00019178,2]
[370319869,1751955046230,-216.77210225,0.00019178,2]
[370319871,1751955046243,-460.0,0.00019178,2]
[370319874,1751955046255,-183.58470328,0.00019178,2]
[370319889,1751955449917,150.0,0.00017763,30]
[370319890,1751955550389,150.0,0.00027397,120]
[370319891,1751955568088,-1936.0,0.00018877,2]
[370319894,1751955853918,-2000.0,0.00018899,2]
[370319899,1751955992118,-153.27389152,0.000189,2]
[370319948,1751956232429,-723.79835812,0.0001874,2]
[370320003,1751956232942,-200.5095062,0.000189,2]
[370320005,1751956232952,-809.44035395,0.00019078,2]
[370320007,1751956232962,-112.75388162,0.00019166,2]
[370320009,1751956232975,-187.24611838,0.00019166,2]
[370320012,1751956232985,-281.01935406,0.00019166,2]
[370320014,1751956233006,-18.98064594,0.00019166,2]
[370320015,1751956233016,-300.0,0.00019166,2]
[370320016,1751956233025,-110.15935406,0.00019166,2]
[370320017,1751956233039,-622.74808823,0.00019166,2]
[370320018,1751956233051,-467.09255771,0.00019166,2]
[370320019,1751956233062,-207.29471528,0.00019166,2]
[370320054,1751956238399,-0.10528472,0.00019166,2]
[370320056,1751956238409,-561.51456633,0.00019168,3]
[370320058,1751956238421,-667.33543367,0.00019168,3]
[370320060,1751956238429,-614.43,0.00019168,3]
[370320062,1751956238439,-307.21,0.00019168,3]
[370320064,1751956238449,-153.61,0.00019168,3]
[370320066,1751956238459,-460.84,0.00019168,3]
[370320068,1751956238469,-500.0,0.00019173,2]
[370320070,1751956238478,-500.0,0.00019173,2]
[370320072,1751956238488,-762.00122181,0.00019178,2]
[370320074,1751956238498,-11529.80490855,0.00019178,2]
[370320076,1751956238508,-277.78278747,0.00019178,2]
[370320078,1751956238517,-463.64512242,0.00019178,2]
[370320080,1751956238527,-461.53987784,0.00019178,2]
[370320082,1751956238536,-460.0,0.00019178,2]
[370320084,1751956238546,-460.0,0.00019178,2]
[370320086,1751956238555,-460.0,0.00019178,2]
[370320088,1751956238565,-462.2712313,0.00019178,2]
[370320090,1751956238574,-460.0,0.00019178,2]
[370320092,1751956238583,-460.0,0.00019178,2]
[370320094,1751956238592,-460.54991565,0.00019178,2]
[370320096,1751956238601,-460.0,0.00019178,2]
[370320098,1751956238611,-460.0,0.00019178,2]
[370320100,1751956238620,-460.0,0.00019178,2]
[370320102,1751956238629,-404.00808908,0.00019178,2]
[370320104,1751956238638,-460.0,0.00019178,2]
[370320106,1751956238647,-460.0,0.00019178,2]
[370320108,1751956238657,-460.0,0.00019178,2]
[370320110,1751956238666,-460.0,0.00019178,2]
[370320112,1751956238675,-460.0,0.00019178,2]
[370320114,1751956238684,-461.14424883,0.00019178,2]
[370320115,1751956238694,-460.0,0.00019178,2]
[370320116,1751956238703,-460.0,0.00019178,2]
[370320117,1751956238713,-461.27669522,0.00019178,2]
[370320118,1751956238722,-464.71632842,0.00019178,2]
[370320119,1751956238732,-147.09278524,0.00019178,2]
[370320120,1751956238746,-130.27749994,0.00019178,2]
[370320121,1751956238761,-460.0,0.00019178,2]
[370320122,1751956238771,-460.0,0.00019178,2]
[370320123,1751956238780,-460.0,0.00019178,2]
[370320124,1751956238790,-460.0,0.00019178,2]
[370320125,1751956238801,-199.64522469,0.00019178,2]
[370320126,1751956238811,-472.37211663,0.00019178,2]
[370320127,1751956238821,-460.0,0.00019178,2]
[370320128,1751956238833,-460.0,0.00019178,2]
[370320129,1751956238843,-460.0,0.00019178,2]
[370320130,1751956238852,-557.33739059,0.00019178,2]
[370320131,1751956238862,-460.0,0.00019178,2]
[370320132,1751956238872,-460.0,0.00019178,2]
[370320133,1751956238882,-460.0,0.00019178,2]